bitfinex-derivatives/quotes_ETHF0:USTF0_20250629
["timestamp","ask_amount","ask_price","bid_price","bid_amount"]
[1751168958637,3.2078,2428.5,2428.4,2.06584]
[1751168960841,3.86641,2428.5,2428.4,2.06584]
[1751168961138,0.65861,2428.5,2428.4,2.06584]
[1751168961842,2.74808136,2428.5,2428.4,2.06584]
[1751168962343,2.74808136,2428.5,2428.4,1.4072]
[1751168963043,0.65861,2428.5,2428.4,2.06584]
[1751168963541,1.36261,2428.5,2428.4,2.06584]
[1751168967846,0.704,2428.5,2428.4,2.06584]
[1751168970655,3.2078,2428.7,2428.6,0.65858]
[1751168970943,0.65852,2428.9,2428.6,27.54605136]
[1751168971250,0.65852,2428.9,2428.8,0.65853]
[1751168971450,1.62501562,2428.9,2428.8,0.65853]
[1751168971752,1.62501562,2428.9,2428.8,1.35583]
[1751168973253,0.96649562,2428.9,2428.8,1.35583]
[1751168973550,0.96649562,2428.9,2428.8,2.79353]
[1751168973751,4.57728,2429.0,2428.9,0.6585]
[1751168975454,0.6585,2428.9,2428.8,2.79351]
[1751168975852,4.57729,2429.0,2428.9,0.6585]
[1751168980752,0.6585,2428.9,2428.8,2.79351]
[1751168980951,2.74797136,2428.9,2428.8,2.79351]
[1751168983459,2.74797136,2428.9,2428.8,1.35581]
[1751168987165,2.74797136,2428.9,2428.8,0.6973]
[1751168987354,3.70944343,2428.9,2428.8,1.35583]
[1751168990059,3.70944343,2428.9,2428.8,0.6973]
[1751168990260,1.64633,2428.8,2428.5,25.4506]
[1751168990563,2.74805136,2428.6,2428.5,25.4506]
[1751168992763,0.65861,2428.5,2428.4,2.46801745]
[1751168993064,0.65861,2428.5,2428.4,27.26001745]
[1751168993861,2.74808136,2428.6,2428.4,27.91862745]
[1751168994060,2.74808136,2428.6,2428.5,24.792]
[1751168994260,2.74808136,2428.6,2428.5,25.45061]
[1751168997068,2.08947136,2428.6,2428.5,25.45061]
[1751168997262,2.74805136,2428.6,2428.5,25.45061]
[1751168997967,2.74805136,2428.6,2428.5,0.65861]
[1751168998168,2.74805136,2428.6,2428.5,25.45061]
[1751168998764,2.08947136,2428.6,2428.5,25.45061]
[1751168999066,3.71036946,2428.6,2428.5,25.45061]
[1751168999766,3.05178946,2428.6,2428.5,25.45061]
[1751169000366,3.71036946,2428.6,2428.5,25.45061]
[1751169000669,3.05178946,2428.6,2428.5,25.45061]
[1751169000967,0.9623181,2428.6,2428.5,25.45061]
[1751169001170,0.9623181,2428.6,2428.5,26.85911]
[1751169001767,3.2078,2428.8,2428.7,0.65855]
[1751169001967,4.17030514,2428.8,2428.7,0.65855]
[1751169002163,4.82883514,2428.8,2428.7,0.65855]
[1751169002971,4.82883514,2428.8,2428.7,2.04675]
[1751169004374,4.17030514,2428.8,2428.7,2.04675]
[1751169005372,4.82883514,2428.8,2428.7,2.04675]
[1751169007677,4.17030514,2428.8,2428.7,2.04675]
[1751169009780,4.82883514,2428.8,2428.7,2.04675]
[1751169010176,4.17030514,2428.8,2428.7,2.04675]
[1751169010969,0.96250514,2428.8,2428.7,2.04675]
[1751169015387,1.62103514,2428.8,2428.7,2.04675]
[1751169015890,0.96250514,2428.8,2428.7,2.04675]
[1751169016691,1.62103514,2428.8,2428.7,2.04675]
[1751169017089,0.96250514,2428.8,2428.7,2.04675]
[1751169054524,0.96250514,2428.8,2428.7,4.13622136]
[1751169067242,0.65848,2429.0,2428.9,0.6585]
[1751169067442,0.65852,2428.9,2428.8,0.6585]
[1751169067643,3.71062918,2428.9,2428.8,25.4415]
[1751169077254,3.05210918,2428.9,2428.8,25.4415]
[1751169078246,0.96263782,2428.9,2428.8,25.4415]
[1751169078453,1.62113782,2428.9,2428.8,25.4415]
[1751169082457,0.96263782,2428.9,2428.8,25.4415]
[1751169083358,1.62113782,2428.9,2428.8,25.4415]
[1751169083760,0.96263782,2428.9,2428.8,25.4415]
[1751169083960,1.62113782,2428.9,2428.8,25.4415]
[1751169084661,1.62113782,2428.9,2428.8,0.6585]
[1751169084863,1.62113782,2428.9,2428.8,25.4395]
[1751169087962,2.31493782,2428.9,2428.8,25.4395]
[1751169092466,2.31493782,2428.9,2428.8,26.1338]
[1751169092663,2.31493782,2428.9,2428.8,28.2941]
[1751169097269,1.62113782,2428.9,2428.8,28.2941]
[1751169099170,0.96263782,2428.9,2428.8,28.2941]
[1751169099871,1.62113782,2428.9,2428.8,28.2941]
[1751169100672,0.96263782,2428.9,2428.8,28.2941]
[1751169103970,0.96263782,2428.9,2428.8,30.38357136]
[1751169104172,0.96263782,2428.9,2428.8,32.85158881]
[1751169105474,3.2078,2429.1,2429.0,0.65847]
[1751169105674,4.16958886,2429.1,2429.0,27.52594136]
[1751169106772,4.16958886,2429.1,2429.0,28.20034136]
[1751169108577,0.96178886,2429.1,2429.0,28.20034136]
[1751169108775,0.96178886,2429.1,2429.0,30.28981272]
[1751169108981,3.2078,2429.4,2429.3,0.65839]
[1751169109278,3.2078,2429.4,2429.3,27.52486136]
[1751169109984,3.2078,2429.4,2429.3,28.24666136]
[1751169110174,3.2078,2429.4,2429.3,29.65736136]
[1751169112884,0.65831,2429.6,2429.5,0.65834]
[1751169120993,1.61269316,2429.6,2429.5,0.65834]
[1751169123892,0.65834,2429.5,2429.4,0.65834]
[1751169124094,1.61272316,2429.5,2429.4,0.65834]
[1751169124599,1.61272316,2429.5,2429.4,2.00874]
[1751169127494,3.70219452,2429.5,2429.4,2.00874]
[1751169128189,3.70219452,2429.5,2429.4,1.3504]
[1751169128394,0.65836,2429.4,2429.3,26.15718]
[1751169128593,1.34676,2429.4,2429.3,26.15718]
[1751169128993,0.6884,2429.4,2429.3,26.15718]
[1751169129795,1.34676,2429.4,2429.3,26.15718]
[1751169129995,0.6884,2429.4,2429.3,26.15718]
[1751169130298,1.34676,2429.4,2429.3,26.15718]
[1751169131298,0.6884,2429.4,2429.3,26.15718]
[1751169135204,1.64317048,2429.4,2429.3,26.15718]
[1751169137004,1.64317048,2429.4,2429.3,27.51398]
[1751169137200,4.85097048,2429.4,2429.0,2.46801745]
[1751169137402,0.65847,2429.0,2428.9,2.46801745]
[1751169137701,2.74794136,2429.0,2428.9,2.46801745]
[1751169137908,1.32087,2429.0,2428.9,2.46801745]
[1751169138095,1.61677189,2429.0,2428.9,0.6585]
[1751169138299,2.27525189,2429.0,2428.9,0.6585]
[1751169138506,2.27525189,2429.0,2428.9,1.3856]
[1751169140215,2.27525189,2429.0,2428.9,0.7271]
[1751169140412,0.65853,2428.8,2428.7,26.78534]
[1751169140715,0.65853,2428.8,2428.7,27.50974]
[1751169142611,2.74799136,2428.9,2428.8,0.65853]
[1751169143821,0.6624,2429.0,2428.9,0.6585]
[1751169144017,1.61609891,2429.0,2428.9,0.6585]
[1751169144318,0.6624,2429.0,2428.9,0.6585]
[1751169145427,1.32087,2429.0,2428.9,0.6585]
[1751169145720,1.32087,2429.0,2428.9,2.0042]
[1751169148022,2.08947136,2429.1,2428.9,2.0042]
[1751169148023,3.2078,2429.1,2428.9,1.3457]
[1751169148322,0.65841,2429.3,2429.2,0.6584]
[1751169148518,1.61174519,2429.3,2429.2,0.6584]
[1751169148912,1.61174519,2429.3,2429.2,2.0506]
[1751169149118,1.61174519,2429.3,2429.1,0.6624]
[1751169149119,0.65842,2429.2,2429.1,0.6624]
[1751169149313,1.61175519,2429.2,2429.1,0.6624]
[1751169149719,1.61175519,2429.2,2429.1,1.32083]
[1751169150426,0.65842,2429.2,2429.1,1.32083]
[1751169152726,0.65845,2429.1,2429.0,26.17835]
[1751169152926,1.36315,2429.1,2429.0,0.7309]
[1751169156626,2.3165788,2429.1,2429.0,0.7309]
[1751169156831,0.65847,2429.0,2428.9,0.65848]
[1751169157033,1.6581288,2429.1,2428.8,2.75931]
[1751169157034,0.6585,2428.9,2428.8,2.75931]
[1751169157335,0.6585,2428.9,2428.8,27.54631]
[1751169162539,0.65853,2428.8,2428.7,4.55314]
[1751169162732,0.65853,2428.8,2428.7,29.34014]
[1751169163640,0.65852,2428.9,2428.8,0.65851]
[1751169167236,1.62106226,2428.9,2428.8,0.65851]
[1751169167839,1.62104226,2428.9,2428.8,1.99511]
[1751169180753,1.62115495,2428.9,2428.8,1.99511]
[1751169185744,1.62115495,2428.9,2428.8,1.3366]
[1751169185946,0.65853,2428.8,2428.7,5.90124163]
[1751169186141,1.62118495,2428.8,2428.7,30.67724163]
[1751169186346,1.62118495,2428.8,2428.7,32.00654163]
[1751169188749,1.62118495,2428.8,2428.7,29.53852418]
[1751169194551,0.96265495,2428.8,2428.7,29.53852418]
[1751169194953,1.62118495,2428.8,2428.7,29.53852418]
[1751169205160,0.96265495,2428.8,2428.7,29.53852418]
[1751169205457,1.62118495,2428.8,2428.7,29.53852418]
[1751169206152,0.96265495,2428.8,2428.7,29.53852418]
[1751169206363,4.57096,2429.1,2429.0,0.65847]
[1751169206554,5.53656651,2429.1,2429.0,0.65847]
[1751169207056,0.65847,2429.0,2428.9,25.43448]
[1751169207257,1.62407651,2429.0,2428.9,28.94187418]
[1751169211249,0.96560651,2429.0,2428.9,28.94187418]
[1751169216066,1.62407651,2429.0,2428.9,28.94187418]
[1751169220067,0.96560651,2429.0,2428.9,28.94187418]
[1751169220268,1.62407651,2429.0,2428.9,28.94187418]
[1751169223172,0.96560651,2429.0,2428.9,28.94187418]
[1751169228387,1.62407651,2429.0,2428.9,28.94187418]
[1751169238595,1.62407651,2429.0,2428.9,26.85398]
[1751169243003,1.62407651,2429.0,2428.9,2.07798]
[1751169243200,1.62407651,2429.0,2428.9,25.43148]
[1751169244300,1.62407651,2429.0,2428.9,0.65848]
[1751169244501,1.62407651,2429.0,2428.9,25.43148]
[1751169248306,1.62407651,2429.0,2428.9,0.65848]
[1751169248503,1.62407651,2429.0,2428.9,25.43048]
[1751169248704,1.62407651,2429.0,2428.9,24.772]
[1751169248905,1.62407651,2429.0,2428.9,25.4305]
[1751169250910,1.62407651,2429.0,2428.9,24.772]
[1751169251208,1.62407651,2429.0,2428.9,25.4305]
[1751169257714,0.96560651,2429.0,2428.9,25.4305]
[1751169258016,0.96560651,2429.0,2428.9,26.7655]
[1751169258515,1.62407651,2429.0,2428.9,26.7655]
[1751169259917,0.96560651,2429.0,2428.9,26.7655]
[1751169260108,0.96560651,2429.0,2428.9,28.85339418]
[1751169260308,3.2078,2429.2,2429.1,0.65845]
[1751169260508,4.17255235,2429.2,2429.1,2.74634418]
[1751169260708,4.17255235,2429.2,2429.1,27.51734418]
[1751169260909,4.17255235,2429.2,2429.1,28.88854418]
[1751169263520,4.83097235,2429.2,2429.1,28.88854418]
[1751169264520,4.17255235,2429.2,2429.1,26.80065]
[1751169264721,4.83097235,2429.2,2429.1,26.80065]
[1751169265322,4.83097235,2429.2,2429.1,28.24565]
[1751169265725,6.91886653,2429.2,2429.1,26.1402]
[1751169265918,6.91886653,2429.2,2429.1,26.79865]
[1751169267817,6.91886653,2429.2,2429.1,26.1402]
[1751169268019,6.91886653,2429.2,2429.1,0.6654]
[1751169268217,0.65845,2429.1,2429.0,25.42745]
[1751169268418,1.36535,2429.1,2429.0,25.42745]
[1751169268619,0.65847,2429.0,2428.9,25.4657]
[1751169269529,1.62186168,2429.0,2428.9,25.4657]
[1751169270022,1.62186168,2429.0,2428.9,26.1242]
[1751169274928,1.62186168,2429.0,2428.9,27.4699]
[1751169275131,0.96339168,2429.0,2428.9,29.55779418]
[1751169275628,1.62186168,2429.0,2428.9,29.55779418]
[1751169275935,0.96339168,2429.0,2428.9,29.55779418]
[1751169276126,1.62186168,2429.0,2428.9,29.55779418]
[1751169276737,0.96339168,2429.0,2428.9,29.55779418]
[1751169277134,1.62186168,2429.0,2428.9,29.55779418]
[1751169277933,0.96339168,2429.0,2428.9,29.55779418]
[1751169278134,1.62186168,2429.0,2428.9,29.55779418]
[1751169279933,0.96339168,2429.0,2428.9,29.55779418]
[1751169280432,1.62186168,2429.0,2428.9,29.55779418]
[1751169290546,0.96339168,2429.0,2428.9,29.55779418]
[1751169290745,1.62186168,2429.0,2428.9,29.55779418]
[1751169303754,1.62186168,2429.0,2428.9,27.4699]
[1751169310150,0.96339168,2429.0,2428.9,27.4699]
[1751169310350,1.62186168,2429.0,2428.9,27.4699]
[1751169318163,1.62186168,2429.0,2428.9,26.8114]
[1751169319771,1.62186168,2429.0,2428.9,27.4699]
[1751169323269,0.96339168,2429.0,2428.9,27.4699]
[1751169323470,1.62186168,2429.0,2428.9,27.4699]
[1751169324074,1.62186168,2429.0,2428.9,27.4659]
[1751169333976,1.62186168,2429.0,2428.9,2.7009]
[1751169334182,1.62186168,2429.0,2428.9,27.4649]
[1751169340180,1.62186168,2429.0,2428.9,26.8064]
[1751169340675,1.62186168,2429.0,2428.9,27.4649]
[1751169350988,1.62186168,2429.0,2428.9,26.8064]
[1751169352388,1.62186168,2429.0,2428.9,27.4649]
[1751169353074,1.62186168,2429.0,2428.9,26.8034]
[1751169353275,1.62186168,2429.0,2428.9,25.4577]
[1751169354489,0.65853,2428.8,2428.7,5.67581745]
[1751169354679,2.74642418,2428.8,2428.7,30.43681745]
[1751169354983,3.70981586,2428.8,2428.7,27.9688]
[1751169355886,3.70981586,2428.8,2428.7,28.62735]
[1751169356285,1.62192168,2428.8,2428.7,28.62735]
[1751169356675,1.62192168,2428.8,2428.7,29.34235]
[1751169358283,1.62192168,2428.8,2428.7,28.6838]
[1751169358477,1.62192168,2428.8,2428.7,29.34235]
[1751169359789,1.62192168,2428.8,2428.7,26.13455]
[1751169361291,1.62192168,2428.8,2428.7,27.58075]
[1751169365191,1.62192168,2428.8,2428.7,26.9222]
[1751169365491,1.62192168,2428.8,2428.7,27.58075]
[1751169365690,1.62192168,2428.8,2428.7,26.9222]
[1751169367186,1.62192168,2428.8,2428.7,25.477]
[1751169369093,0.96339168,2428.8,2428.5,5.29569418]
[1751169369295,3.77918586,2428.7,2428.5,3.2078]
[1751169369496,3.47434418,2428.7,2428.6,24.762]
[1751169369792,4.43650308,2428.7,2428.6,24.762]
[1751169371096,0.65858,2428.6,2428.5,3.8664]
[1751169371391,1.6207389,2428.6,2428.5,30.0515]
[1751169372392,1.6207389,2428.6,2428.5,32.13939418]
[1751169374196,0.9621589,2428.6,2428.5,32.13939418]
[1751169379400,1.6207389,2428.6,2428.5,32.13939418]
[1751169379699,0.9621589,2428.6,2428.5,32.13939418]
[1751169380899,0.9621589,2428.6,2428.5,28.93159418]
[1751169410331,0.9621589,2428.6,2428.5,72.19961163]
[1751169411822,1.3288,2428.9,2428.8,0.65853]
[1751169412027,1.63755083,2428.9,2428.8,27.50642418]
[1751169412524,1.63755083,2428.9,2428.8,28.17482418]
[1751169414837,1.63755083,2428.9,2428.8,30.29062418]
[1751169417633,2.29605083,2428.9,2428.8,28.20273]
[1751169417825,2.29605083,2428.9,2428.8,25.41853]
[1751169418935,2.29605083,2428.9,2428.8,27.50642418]
[1751169419133,2.29605083,2428.9,2428.8,28.21982418]
[1751169419731,0.96725083,2428.9,2428.8,28.21982418]
[1751169419930,0.96725083,2428.9,2428.8,29.67612418]
[1751169420125,0.96725083,2428.9,2428.8,30.37222418]
[1751169421629,0.7044,2429.1,2429.0,0.65847]
[1751169421931,1.67073852,2429.1,2429.0,27.50436418]
[1751169422328,2.32918852,2429.1,2429.0,27.50436418]
[1751169427145,1.67073852,2429.1,2429.0,27.50436418]
[1751169428040,2.32918852,2429.1,2429.0,27.50436418]
[1751169428441,1.67073852,2429.1,2429.0,27.50436418]
[1751169430441,1.66972014,2429.1,2429.0,27.50436418]
[1751169433146,1.66972014,2429.1,2429.0,28.17926418]
[1751169437950,2.32817014,2429.1,2429.0,28.17926418]
[1751169449654,1.66972014,2429.1,2429.0,28.17926418]
[1751169451255,0.96532014,2429.1,2429.0,29.63716418]
[1751169453659,0.96532014,2429.1,2429.0,35.91716418]
[1751169455460,1.62377014,2429.1,2429.0,33.82927]
[1751169456655,0.65845,2429.1,2429.0,33.82927]
[1751169456862,0.65845,2429.1,2429.0,32.37137]
[1751169457553,0.65845,2429.1,2429.0,31.7129]
[1751169457755,2.08789418,2429.1,2429.0,24.752]
[1751169458359,2.74634418,2429.1,2429.0,24.752]
[1751169463869,2.74634418,2429.1,2428.8,6.65030418]
[1751169463870,2.08789418,2429.1,2428.8,6.65030418]
[1751169464167,2.74634418,2429.1,2429.0,24.752]
[1751169472789,0.65845,2429.1,2429.0,25.41047]
[1751169473086,0.65845,2429.1,2429.0,27.49836418]
[1751169475378,0.65845,2429.1,2429.0,28.26129418]
[1751169475679,0.65845,2429.1,2429.0,28.91976418]
[1751169476590,0.65845,2429.1,2429.0,28.26129418]
[1751169479590,0.65845,2429.1,2429.0,28.91976418]
[1751169479886,0.65845,2429.1,2429.0,28.26129418]
[1751169480190,0.65845,2429.1,2429.0,28.91976418]
[1751169480389,0.65845,2429.1,2429.0,28.26129418]
[1751169480690,0.65845,2429.1,2429.0,28.91976418]
[1751169481489,0.65845,2429.1,2429.0,28.26129418]
[1751169484297,0.65845,2429.1,2429.0,26.1714]
[1751169484785,0.65847,2429.0,2428.9,0.7287]
[1751169484991,0.6585,2428.9,2428.8,0.6961]
[1751169485187,0.65855,2428.7,2428.6,8.3172]
[1751169485490,0.65855,2428.7,2428.6,33.0672]
[1751169486690,0.65855,2428.7,2428.6,33.72578]
[1751169487193,0.65855,2428.7,2428.6,2.69678]
[1751169487490,0.65855,2428.7,2428.6,33.72578]
[1751169488094,0.65855,2428.7,2428.6,33.0672]
[1751169491198,0.65855,2428.7,2428.6,8.3172]
[1751169491396,0.65855,2428.7,2428.6,33.0672]
[1751169491593,1.35375,2428.7,2428.6,33.0672]
[1751169494496,1.35375,2428.7,2428.6,33.72578]
[1751169494999,1.35375,2428.7,2428.6,2.69678]
[1751169495401,1.35375,2428.7,2428.6,33.0672]
[1751169495800,1.35375,2428.7,2428.6,33.72578]
[1751169496100,1.35375,2428.7,2428.6,33.0672]
[1751169496496,1.35375,2428.7,2428.6,2.0382]
[1751169496699,1.35375,2428.7,2428.6,33.0672]
[1751169499407,1.35375,2428.7,2428.6,2.0382]
[1751169499595,1.35375,2428.7,2428.6,33.0682]
[1751169500203,1.35375,2428.7,2428.6,33.72678]
[1751169502303,1.35375,2428.7,2428.6,33.0682]
[1751169502709,1.35375,2428.7,2428.6,31.03]
[1751169502900,1.35375,2428.7,2428.6,31.7209]
[1751169503301,1.35375,2428.7,2428.6,33.1437]
[1751169503702,1.35375,2428.7,2428.6,33.80228]
[1751169504202,1.35375,2428.7,2428.6,33.1437]
[1751169504707,1.35375,2428.7,2428.6,2.1137]
[1751169504895,1.35375,2428.7,2428.6,26.8647]
[1751169505300,1.35375,2428.7,2428.6,2.1137]
[1751169505601,2.31998391,2428.7,2428.6,27.52328]
[1751169505906,1.35375,2428.7,2428.6,27.52328]
[1751169506107,1.35375,2428.7,2428.6,26.8647]
[1751169506307,2.3200108,2428.7,2428.6,27.52328]
[1751169506507,1.35375,2428.7,2428.6,27.52328]
[1751169507909,1.35375,2428.7,2428.6,26.8647]
[1751169510512,1.35375,2428.7,2428.6,27.52328]
[1751169511109,1.35375,2428.7,2428.6,26.8647]
[1751169511310,2.32010637,2428.7,2428.6,26.8647]
[1751169512322,1.35375,2428.7,2428.6,26.8647]
[1751169512513,2.32017423,2428.7,2428.6,26.8647]
[1751169520707,2.32017423,2428.7,2428.6,2.1137]
[1751169520911,2.32017423,2428.7,2428.6,26.8647]
[1751169521713,2.32017423,2428.7,2428.6,27.52328]
[1751169521919,2.32017423,2428.7,2428.6,26.8647]
[1751169548627,2.32017423,2428.7,2428.6,2.1137]
[1751169548834,2.32017423,2428.7,2428.6,26.8627]
[1751169551134,2.32017423,2428.7,2428.6,2.1137]
[1751169551329,0.65858,2428.6,2428.5,9.41430784]
[1751169551522,1.62500423,2428.6,2428.5,34.16330784]
[1751169551727,1.62500423,2428.6,2428.5,27.88630784]
[1751169552127,1.62500423,2428.6,2428.5,25.4196]
[1751169552935,1.62500423,2428.6,2428.5,0.6706]
[1751169553134,1.62500423,2428.6,2428.5,25.4196]
[1751169559743,0.65861,2428.5,2428.4,3.13940784]
[1751169560040,0.65864,2428.4,2428.3,7.05490784]
[1751169560238,0.65864,2428.4,2428.3,31.80390784]
[1751169560444,0.65864,2428.4,2428.3,72.60390784]
[1751169560747,0.65864,2428.4,2428.3,31.80390784]
[1751169560952,1.62555558,2428.4,2428.3,30.0522]
[1751169561139,0.65864,2428.4,2428.3,30.0522]
[1751169564757,0.65864,2428.4,2428.3,5.3032]
[1751169564958,0.65864,2428.4,2428.3,3.2078]
[1751169565158,1.62485199,2428.4,2428.3,27.9568]
[1751169565757,1.62485199,2428.4,2428.2,3.0272329]
[1751169565758,0.65866,2428.3,2428.2,3.0272329]
[1751169565961,3.47945418,2428.3,2428.2,27.7762329]
[1751169568462,1.39156,2428.3,2428.2,27.7762329]
[1751169568864,1.39156,2428.3,2428.2,29.1769329]
[1751169572766,1.39156,2428.3,2428.2,4.4279329]
[1751169572961,1.39156,2428.3,2428.2,29.1789329]
[1751169584374,1.39156,2428.3,2428.2,26.1517]
[1751169586575,2.35794043,2428.3,2428.2,26.1517]
[1751169587970,1.62504043,2428.3,2428.2,26.1517]
[1751169588176,1.62528867,2428.3,2428.2,26.81039]
[1751169588371,1.62528867,2428.3,2428.2,26.1517]
[1751169599676,1.62528867,2428.3,2428.2,26.81039]
[1751169602782,0.96662867,2428.3,2428.2,26.81039]
[1751169602977,0.96662867,2428.3,2428.2,29.27709784]
[1751169603380,7.64467418,2428.6,2428.3,0.65865]
[1751169603579,0.97888881,2428.5,2428.4,31.68363]
[1751169603786,0.97888881,2428.5,2428.4,33.75173]
[1751169603980,0.97888881,2428.5,2428.4,41.21843784]
[1751169604180,0.65852,2428.9,2428.7,0.65855]
[1751169604386,0.65852,2428.9,2428.8,26.81723]
[1751169604684,1.63686666,2428.9,2428.8,27.5406]
[1751169609376,0.65862,2428.5,2428.4,0.65862]
[1751169609684,0.65862,2428.5,2428.4,26.13522]
[1751169609685,2.74651418,2428.5,2428.4,26.13522]
[1751169609881,2.74651418,2428.5,2428.4,27.50282]
[1751169610090,2.74651418,2428.5,2428.4,29.96890785]
[1751169610387,2.74649418,2428.6,2428.5,0.65861]
[1751169610588,2.74649418,2428.6,2428.5,1.99741]
[1751169614790,2.74649418,2428.6,2428.5,1.3388]
[1751169614990,0.6586,2428.6,2428.5,1.3388]
[1751169615291,0.6586,2428.6,2428.5,1.99741]
[1751169616094,0.6586,2428.6,2428.5,1.3388]
[1751169616288,0.6586,2428.6,2428.5,1.99741]
[1751169616489,0.6586,2428.6,2428.5,1.3388]
[1751169617394,0.6586,2428.6,2428.5,1.99741]
[1751169623393,0.6586,2428.6,2428.5,1.3388]
[1751169623698,0.65861,2428.5,2428.4,28.22311418]
[1751169625199,0.65861,2428.5,2428.4,30.68920203]
[1751169625598,0.65861,2428.5,2428.4,3.85230785]
[1751169625800,0.65861,2428.5,2428.4,34.87430785]
[1751169630903,0.65861,2428.5,2428.4,34.21568785]
[1751169631394,0.65861,2428.5,2428.4,34.87432785]
[1751169631595,0.65861,2428.5,2428.4,34.21568785]
[1751169631794,0.65861,2428.5,2428.4,34.87432785]
[1751169633104,0.65861,2428.5,2428.4,32.40824]
[1751169633904,0.65861,2428.5,2428.4,31.7496]
[1751169634206,0.65861,2428.5,2428.4,32.40824]
[1751169635606,0.65861,2428.5,2428.4,31.7496]
[1751169636003,0.65861,2428.5,2428.4,32.40824]
[1751169637007,0.65861,2428.5,2428.4,0.7276]
[1751169637206,0.65861,2428.5,2428.4,27.94161121]
[1751169637598,2.74650418,2428.5,2428.4,27.21401121]
[1751169639508,2.74650418,2428.5,2428.4,2.46901121]
[1751169639707,3.72377376,2428.5,2428.4,27.21401121]
[1751169641817,3.72377376,2428.5,2428.4,24.745]
[1751169642613,0.65864,2428.4,2428.3,3.2078]
[1751169642806,0.65864,2428.4,2428.3,27.9538]
[1751169642807,2.36460958,2428.4,2428.3,27.9538]
[1751169643006,2.36460958,2428.4,2428.3,28.6786]
[1751169643815,2.36460958,2428.4,2428.3,3.9326]
[1751169644113,2.36460958,2428.4,2428.3,28.6786]
[1751169647708,2.36460958,2428.4,2428.3,29.33726]
[1751169648213,1.38734,2428.4,2428.3,30.67246]
[1751169649016,1.38734,2428.4,2428.3,27.46466]
[1751169649621,1.38734,2428.4,2428.3,26.806]
[1751169650517,1.38734,2428.4,2428.3,27.46466]
[1751169653112,7.73614,2428.8,2428.3,26.806]
[1751169653319,0.6586,2428.6,2428.5,0.65859]
[1751169653515,0.65861,2428.5,2428.4,4.88011418]
[1751169653714,1.63344836,2428.5,2428.4,28.21721418]
[1751169656821,0.97483836,2428.5,2428.4,28.21721418]
[1751169657026,0.65859,2428.6,2428.5,0.65858]
[1751169657227,1.63341719,2428.6,2428.5,0.65858]
[1751169665524,1.63341719,2428.6,2428.5,2.12058]
[1751169668937,1.63341719,2428.6,2428.5,2.80088]
[1751169673345,0.97482719,2428.6,2428.5,9.07488]
[1751169673543,3.2078,2428.9,2428.8,0.65853]
[1751169673841,3.2078,2428.9,2428.8,25.40453]
[1751169674248,3.2078,2428.9,2428.8,28.11153]
[1751169674735,0.65847,2429.0,2428.9,0.6585]
[1751169674936,0.65847,2429.0,2428.9,2.1164]
[1751169675541,3.54027,2429.0,2428.9,2.1164]
[1751169676143,3.54027,2429.0,2428.9,1.4579]
[1751169677338,3.54027,2429.0,2428.9,2.1164]
[1751169680849,6.52265817,2429.0,2428.9,24.743]
[1751169681355,0.65854,2428.8,2428.7,6.274]
[1751169681557,0.65854,2428.8,2428.7,31.017]
[1751169681848,0.65854,2428.8,2428.7,31.67555]
[1751169683951,0.65854,2428.8,2428.7,31.017]
[1751169684445,0.65855,2428.7,2428.6,3.86637]
[1751169684651,1.38665,2428.7,2428.6,28.61137]
[1751169686051,1.38665,2428.7,2428.6,27.9528]
[1751169687049,1.38665,2428.7,2428.6,28.61138]
[1751169687953,1.38665,2428.7,2428.6,27.9528]
[1751169688154,1.38665,2428.7,2428.6,28.61138]
[1751169688455,0.7281,2428.7,2428.6,28.61138]
[1751169689354,1.38665,2428.7,2428.6,28.61138]
[1751169691758,1.38665,2428.7,2428.6,3.86638]
[1751169691959,0.7281,2428.7,2428.6,28.61038]
[1751169692160,1.38665,2428.7,2428.6,28.61038]
[1751169692359,0.7281,2428.7,2428.6,28.61038]
[1751169692960,1.38665,2428.7,2428.6,3.86638]
[1751169693158,1.38665,2428.7,2428.6,27.9518]
[1751169693461,1.38665,2428.7,2428.6,28.61038]
[1751169694557,1.38665,2428.7,2428.6,27.9518]
[1751169695460,1.38665,2428.7,2428.6,28.61038]
[1751169695956,1.38665,2428.7,2428.6,3.2078]
[1751169696161,1.38665,2428.7,2428.6,27.9518]
[1751169700065,1.38665,2428.7,2428.6,3.2078]
[1751169700266,1.38665,2428.7,2428.6,27.9518]
[1751169700457,1.38665,2428.7,2428.6,24.744]
[1751169700657,0.65858,2428.6,2428.5,0.6586]
[1751169700858,0.65858,2428.6,2428.5,25.4026]
[1751169702261,0.65861,2428.5,2428.4,2.46901121]
[1751169702468,0.65864,2428.4,2428.3,2.46901121]
[1751169702660,0.65866,2428.3,2428.2,27.88770121]
[1751169702861,1.37504,2428.4,2428.3,0.65866]
[1751169703055,0.65866,2428.3,2428.2,26.82948]
[1751169705166,1.62821451,2428.3,2428.2,26.82948]
[1751169705764,1.62821451,2428.3,2428.2,26.1708]
[1751169706366,0.65866,2428.3,2428.2,26.1708]
[1751169707472,9.62904817,2428.3,2427.9,2.46735529]
[1751169707769,0.6588,2427.8,2427.7,31.81825529]
[1751169707973,0.6588,2427.8,2427.7,33.23915529]
[1751169708564,0.6588,2427.8,2427.7,8.42415529]
[1751169708771,0.6588,2427.8,2427.7,32.58035529]
[1751169710371,0.6588,2427.8,2427.7,33.23918529]
[1751169710573,0.6588,2427.8,2427.7,32.58035529]
[1751169711273,0.6588,2427.8,2427.7,30.113]
[1751169712371,0.6588,2427.8,2427.7,5.298]
[1751169712571,3.64118817,2427.8,2427.7,28.6901]
[1751169713581,3.64118817,2427.8,2427.7,28.6911]
[1751169713871,3.64118817,2427.8,2427.7,28.0218]
[1751169714074,3.64118817,2427.8,2427.7,3.2078]
[1751169714273,3.64118817,2427.8,2427.7,28.0228]
[1751169714875,3.64118817,2427.8,2427.7,3.2078]
[1751169715075,3.64118817,2427.8,2427.7,28.0228]
[1751169716476,3.64118817,2427.8,2427.7,3.2078]
[1751169717079,0.65885,2427.6,2427.5,7.6779]
[1751169717378,0.65885,2427.6,2427.5,34.51388]
[1751169718183,0.65885,2427.6,2427.5,33.855]